fUSD/lending_fUSD_20260324
["ID","MTS","AMOUNT","RATE_DAILY","PERIOD"]
[408827165,1774323801307,-284.0,0.00011507,2]
[408827166,1774323801335,-250.37440828,0.00012783,2]
[408827167,1774323801743,-346.05853734,0.0001301,2]
[408827171,1774324231662,-1500.0,0.00012912,2]
[408827172,1774324231672,-5097.948299,0.00013265,2]
[408827173,1774324231681,-370.8332,0.00013332,2]
[408827174,1774324231695,-1200.0,0.00013424,2]
[408827175,1774324231705,-3240.0,0.00013425,2]
[408827176,1774324231714,-8773.113,0.00013501,2]
[408827178,1774324231723,-200.0,0.00013507,2]
[408827179,1774324231733,-166.67,0.00013525,2]
[408827180,1774324231742,-1149.41,0.00013693,2]
[408827181,1774324231752,-334.95,0.00013699,2]
[408827182,1774324231761,-246.26773079,0.000137,2]
[408827184,1774324231770,-457.9590297,0.000137,2]
[408827185,1774324231779,-175.82007453,0.000137,2]
[408827186,1774324231789,-232.69679157,0.000137,2]
[408827187,1774324231798,-218.153894,0.000137,2]
[408827188,1774324231806,-227.31507592,0.000137,2]
[408827189,1774324231816,-992.42751169,0.00013705,2]
[408827190,1774324231825,-150.0,0.00013705,2]
[408827192,1774324231834,-16117.86856793,0.00013706,2]
[408827194,1774324237673,-487.1150297,0.00013706,2]
[408827195,1774324237693,-499.40535172,0.00013706,2]
[408827196,1774324237704,-4144.1699421,0.00013706,2]
[408827197,1774324237739,-1086.8797393,0.00013706,2]
[408827198,1774324237751,-76210.80186925,0.00013706,2]
[408827199,1774324237761,-500.0,0.00013714,2]
[408827200,1774324237771,-500.0,0.00013714,2]
[408827201,1774324237781,-500.0,0.00013714,2]
[408827202,1774324237790,-500.0,0.00013714,2]
[408827203,1774324237799,-500.0,0.00013714,2]
[408827204,1774324237808,-500.0,0.00013714,2]
[408827205,1774324237818,-500.0,0.00013714,2]
[408827206,1774324237827,-500.0,0.00013714,2]
[408827207,1774324237836,-500.0,0.00013714,2]
[408827208,1774324237846,-487.16585343,0.00013714,2]
[408827209,1774324237855,-4908.29057331,0.00013739,2]
[408827210,1774324237865,-1287.7,0.00013739,2]
[408827211,1774324237874,-163.45,0.00013739,2]
[408827212,1774324237884,-3407.56828749,0.00013745,2]
[408827213,1774324237893,-4925.40445428,0.00013745,2]
[408827214,1774324237903,-459.12883712,0.00013773,2]
[408827215,1774324237913,-501.63683479,0.00013773,2]
[408827216,1774324237922,-500.0,0.00013773,2]
[408827217,1774324237932,-500.0,0.00013773,2]
[408827218,1774324237942,-500.0,0.00013805,2]
[408827219,1774324237951,-500.0,0.00013805,2]
[408827220,1774324237961,-500.0,0.00013805,2]
[408827221,1774324237970,-514.20325537,0.00013805,2]
[408827222,1774324237979,-500.0,0.00013805,2]
[408827223,1774324237988,-500.0,0.00013805,2]
[408827224,1774324237998,-230.0,0.00013845,2]
[408827225,1774324238007,-500.0,0.00013845,2]
[408827226,1774324238016,-500.0,0.00013873,2]
[408827227,1774324238114,-500.0,0.00013873,2]
[408827228,1774324238124,-500.0,0.00013873,2]
[408827229,1774324238132,-500.0,0.00013873,2]
[408827230,1774324238142,-500.0,0.00013873,2]
[408827231,1774324238151,-500.0,0.00013873,2]
[408827232,1774324238160,-227.08027215,0.00013873,2]
[408827233,1774324238169,-500.0,0.00013873,2]
[408827234,1774324238179,-432.82447539,0.00013873,2]
[408827235,1774324238188,-500.0,0.00013873,2]
[408827236,1774324238197,-500.0,0.00013873,2]
[408827237,1774324238206,-500.0,0.00013873,2]
[408827238,1774324238216,-500.0,0.00013873,2]
[408827239,1774324238225,-500.0,0.00013873,2]
[408827240,1774324238234,-500.0,0.00013873,2]
[408827241,1774324238243,-500.49583735,0.00013873,2]
[408827242,1774324238253,-500.0,0.00013873,2]
[408827243,1774324238266,-2257.38725338,0.000139,5]
[408827244,1774324238277,-1542.61274662,0.000139,5]
[408827245,1774324238287,-500.0,0.00013954,2]
[408827246,1774324238296,-500.0,0.00013954,2]
[408827247,1774324238306,-263.27012715,0.00013954,2]
[408827248,1774324238341,-236.72987285,0.00013954,2]
[408827249,1774324238350,-81.51533717,0.00013954,2]
[408827250,1774324238361,-418.48466283,0.00013954,2]
[408827251,1774324238370,-500.0,0.00013954,2]
[408827252,1774324238379,-352.11765731,0.00013954,2]
[408827255,1774324240546,-147.88234269,0.00013954,2]
[408827257,1774324240555,-500.0,0.00013954,2]
[408827259,1774324240565,-368.08633549,0.00013954,2]
[408827261,1774324240576,-131.91366451,0.00013954,2]
[408827263,1774324240585,-500.0,0.00013954,2]
[408827265,1774324240595,-205.08896251,0.00013954,2]
[408827266,1774324240603,-818.3522742,0.00013984,2]
[408827267,1774324240614,-750.0,0.00013984,2]
[408827268,1774324240640,-1839.21601322,0.00013984,2]
[408827269,1774324240649,-1458.78398678,0.00013984,2]
[408827270,1774324240674,-872.14,0.00013984,2]
[408827279,1774324243953,-809.74516329,0.00013984,2]
[408827286,1774324245653,-1784.73530416,0.00013984,2]
[408827287,1774324245663,-150.0,0.00013988,2]
[408827288,1774324245673,-150.0,0.00013988,2]
[408827289,1774324245682,-150.0,0.00013988,2]
[408827290,1774324245691,-150.0,0.00013988,2]
[408827291,1774324245701,-150.0,0.00013988,2]
[408827292,1774324245710,-150.0,0.00013988,2]
[408827293,1774324245720,-500.0,0.00013988,2]
[408827294,1774324245729,-150.0,0.00013988,2]
[408827295,1774324245739,-500.0,0.00013988,2]
[408827296,1774324245749,-150.0,0.00013988,2]
[408827297,1774324245758,-500.0,0.00013988,2]
[408827298,1774324245767,-150.0,0.00013988,2]
[408827299,1774324245777,-150.0,0.00013988,2]
[408827300,1774324245787,-500.0,0.00013988,2]
[408827301,1774324245797,-150.0,0.00013988,2]
[408827302,1774324245807,-500.0,0.00013988,2]
[408827303,1774324245816,-150.0,0.00013988,2]
[408827304,1774324245826,-500.0,0.00013988,2]
[408827305,1774324245836,-150.0,0.00013988,2]
[408827306,1774324245846,-500.0,0.00013988,2]
[408827307,1774324245856,-115.46739265,0.00013988,2]
[408827308,1774324245890,-34.53260735,0.00013988,2]
[408827309,1774324245900,-500.0,0.00013988,2]
[408827310,1774324245910,-150.0,0.00013988,2]
[408827311,1774324245920,-500.0,0.00013988,2]
[408827312,1774324245933,-150.0,0.00013988,2]
[408827313,1774324245944,-500.0,0.00013988,2]
[408827314,1774324245955,-500.0,0.00013988,2]
[408827315,1774324245965,-150.0,0.00013988,2]
[408827316,1774324245975,-157.67029379,0.00013988,2]
[408827317,1774324245984,-150.0,0.00013988,2]
[408827318,1774324245994,-150.0,0.00013988,2]
[408827319,1774324246005,-150.0,0.00013988,2]
[408827320,1774324246016,-150.0,0.00013988,2]
[408827321,1774324246027,-150.0,0.00013988,2]
[408827322,1774324246037,-150.0,0.00013988,2]
[408827323,1774324246048,-150.0,0.00013988,2]
[408827324,1774324246058,-150.0,0.00013988,2]
[408827325,1774324246069,-150.0,0.00013988,2]
[408827326,1774324246079,-150.0,0.00013988,2]
[408827327,1774324246090,-150.0,0.00013988,2]
[408827328,1774324246100,-150.0,0.00013988,2]
[408827329,1774324246111,-150.0,0.00013988,2]
[408827331,1774324246122,-150.0,0.00013988,2]
[408827333,1774324246132,-150.0,0.00013988,2]
[408827335,1774324246142,-150.0,0.00013988,2]
[408827337,1774324246152,-150.0,0.00013988,2]
[408827340,1774324246163,-150.0,0.00013988,2]
[408827342,1774324246173,-150.0,0.00013988,2]
[408827344,1774324246183,-150.0,0.00013988,2]
[408827346,1774324246193,-150.0,0.00013988,2]
[408827348,1774324246203,-150.0,0.00013988,2]
[408827350,1774324246213,-150.0,0.00013988,2]
[408827352,1774324246223,-289.11058617,0.00013988,2]
[408827354,1774324246234,-422.21981869,0.00014,2]
[408827357,1774324246247,-116.78018131,0.00014,2]
[408827359,1774324246260,-500.0,0.00014073,2]
[408827361,1774324246271,-500.0,0.00014073,2]
[408827363,1774324246281,-500.82118863,0.00014073,2]
[408827365,1774324246291,-500.0,0.00014073,2]
[408827368,1774324246306,-500.0,0.00014119,2]
[408827370,1774324246317,-225.41099554,0.00014128,2]
[408827372,1774324246327,-426.0,0.00014213,2]
[408827374,1774324246338,-9193.92393452,0.00014213,2]
[408827378,1774324246365,-1552.38384948,0.00014213,2]
[408827380,1774324246375,-2660.7075582,0.00014213,2]
[408827382,1774324246386,-6306.89976002,0.00014213,2]
[408827392,1774324268380,-300.0,0.00013605,2]
[408827393,1774324400761,425.46,6.641e-05,2]
[408827394,1774324400937,425.46,6.991e-05,2]
[408827395,1774324401129,425.46,7.34e-05,2]
[408827396,1774324401327,425.46,7.69e-05,2]
[408827397,1774324401514,425.46,8.039e-05,2]
[408827398,1774324401697,425.46,8.389e-05,2]
[408827399,1774324401892,425.46,8.739e-05,2]
[408827400,1774324402078,425.46,9.088e-05,2]
[408827401,1774324402299,425.46,9.438e-05,2]
[408827402,1774324444897,175.0,0.00011,3]
[408827403,1774324505955,175.0,0.00011,3]
[408827408,1774324567011,175.0,0.00011,3]
[408827409,1774324869448,-425.46,9.787e-05,2]
[408827410,1774324869477,-250.0,9.962e-05,2]
[408827411,1774324869508,-425.46,0.00010137,2]
[408827412,1774324869539,-425.46,0.00010486,2]
[408827413,1774324869568,-747.25,0.00010765,2]
[408827414,1774324872298,-452.75,0.00010765,2]
[408827415,1774324872325,-195.23491641,0.00010766,2]
[408827417,1774325138976,-250.0,0.00010818,2]
[408827418,1774325210104,-425.46,0.00010836,2]
[408827419,1774325210125,-126.43417474,0.0001101,2]
[408827420,1774325325739,-145.88712003,0.0001101,2]
[408827421,1774325325768,-425.46,0.00011185,2]
[408827422,1774325325795,-425.46,0.00011535,2]
[408827423,1774325325822,-237.89766088,0.00011678,2]
[408827424,1774325325851,-400.0,0.00011803,4]
[408827425,1774325325880,-530.60043818,0.00011879,2]
[408827426,1774325328466,-669.39956182,0.00011879,2]
[408827427,1774325328496,-183.0,0.00011879,2]
[408827435,1774325431666,-425.46,0.00011884,2]
[408827436,1774325431676,-340.58652356,0.00011888,2]
[408827437,1774325431685,-134.57665906,0.000119,2]
[408827438,1774325431721,-992.75737849,0.000119,2]
[408827439,1774325431732,-315.31506907,0.000119,2]
[408827440,1774325431744,-1135.35274504,0.000119,2]
[408827441,1774325431753,-250.0,0.00011919,2]
[408827442,1774325431763,-166.66,0.00012013,2]
[408827443,1774325431772,-250.0,0.00012112,2]
[408827444,1774325431782,-425.46,0.00012234,2]
[408827445,1774325431791,-166.66,0.00012266,2]
[408827446,1774325431800,-2000.0,0.00012304,2]
[408827447,1774325431809,-371.24377777,0.00012358,2]
[408827448,1774325431818,-1200.0,0.00012465,2]
[408827449,1774325431827,-1849.55,0.00012466,2]
[408827450,1774325431836,-288.97203358,0.00012482,2]
[408827451,1774325431845,-166.66,0.00012519,2]
[408827452,1774325431855,-425.46,0.00012583,2]
[408827453,1774325431864,-14243.83,0.00012595,2]
[408827454,1774325431873,-1072.5,0.00012676,2]
[408827455,1774325431882,-260.01,0.00012692,2]
[408827456,1774325431891,-166.66,0.00012772,2]
[408827457,1774325431900,-150.0,0.00012894,2]
[408827458,1774325431910,-150.0,0.000129,2]
[408827459,1774325431919,-425.46,0.00012933,2]
[408827460,1774325431928,-192.2,0.00012991,2]
[408827461,1774325431937,-250.0,0.00013,2]
[408827463,1774325431946,-166.66,0.00013025,2]
[408827465,1774325431955,-150.0,0.00013067,2]
[408827467,1774325431964,-250.0,0.00013073,2]
[408827468,1774325431973,-5000.0,0.00013073,2]
[408827469,1774325431982,-166.66,0.00013278,2]
[408827470,1774325431991,-425.46,0.00013282,2]
[408827471,1774325432000,-338.82,0.00013302,2]
[408827472,1774325432010,-8638.08,0.00013309,2]
[408827473,1774325432020,-9402.0970137,0.0001353,2]
[408827474,1774325432029,-164966.60031586,0.0001353,2]
[408827475,1774325432041,-6821.14109509,0.0001353,2]
[408827476,1774325432052,-2249.14304455,0.0001353,2]
[408827477,1774325432061,-500.38862908,0.00013573,2]
[408827478,1774325432070,-500.0,0.00013598,2]
[408827479,1774325432079,-500.0,0.00013598,2]
[408827480,1774325432088,-500.0,0.00013598,2]
[408827481,1774325432099,-500.0,0.00013598,2]
[408827482,1774325432110,-500.0,0.00013598,2]
[408827483,1774325432119,-244.06850131,0.00013598,2]
[408827484,1774325432130,-333.54080429,0.00013598,2]
[408827485,1774325432139,-151.0,0.00013598,2]
[408827486,1774325432149,-151.0,0.00013598,2]
[408827487,1774325432158,-151.0,0.00013598,2]
[408827488,1774325432167,-151.0,0.00013598,2]
[408827489,1774325432176,-151.0,0.00013598,2]
[408827490,1774325432186,-161.65319678,0.00013598,2]
[408827491,1774325432195,-350.0,0.00013609,2]
[408827492,1774325432204,-500.0,0.00013699,2]
[408827493,1774325432214,-200.0,0.00013699,2]
[408827494,1774325432223,-1680.0,0.00013712,2]
[408827495,1774325432233,-192.2,0.00013713,2]
[408827496,1774325432242,-500.0,0.00013805,2]
[408827497,1774325432519,-500.0,0.00013805,2]
[408827498,1774325432539,-500.0,0.00013805,2]
[408827499,1774325432548,-511.24400074,0.00013805,2]
[408827500,1774325432557,-582.08491635,0.00013805,2]
[408827501,1774325432567,-3827.42,0.00013805,2]
[408827502,1774325432577,-3827.42,0.00013805,2]
[408827503,1774325432586,-2000.0,0.00013842,2]
[408827504,1774325432596,-3600.0,0.000139,5]
[408827505,1774325432605,-350.0,0.00013917,2]
[408827506,1774325432618,-500.0,0.00013964,2]
[408827507,1774325432627,-9552.16786547,0.00013964,2]
[408827508,1774325432637,-500.0,0.00013964,2]
[408827509,1774325432647,-500.0,0.00013964,2]
[408827510,1774325432658,-500.0,0.00013964,2]
[408827511,1774325432667,-500.0,0.00013964,2]
[408827512,1774325432677,-500.0,0.00013964,2]
[408827513,1774325432690,-500.0,0.00013964,2]
[408827514,1774325432699,-500.0,0.00013964,2]
[408827515,1774325432709,-500.0,0.00013964,2]
[408827516,1774325432720,-500.0,0.00013964,2]
[408827517,1774325432729,-500.0,0.00013964,2]
[408827518,1774325432739,-13.96822892,0.00013964,2]
[408827519,1774325432763,-486.03177108,0.00013964,2]
[408827520,1774325432772,-151.0,0.00013964,2]
[408827521,1774325432782,-262.90206542,0.00013964,2]
[408827522,1774325432792,-405.4461635,0.00014,2]
[408827523,1774325432823,-135.5538365,0.00014,2]
[408827524,1774325432832,-529.4631,0.00014013,2]
[408827525,1774325432842,-3772.9830035,0.00014013,2]
[408827526,1774325437772,-242.37612579,0.00014013,2]
[408827527,1774325437783,-124.62387421,0.00014013,2]
[408827528,1774325437795,-2819.02815207,0.00014013,2]
[408827529,1774325437805,-500.0,0.00014019,2]
[408827530,1774325437815,-9905.5980765,0.00014019,2]
[408827531,1774325437825,-151.0,0.00014019,2]
[408827532,1774325437836,-272.62944185,0.00014019,2]
[408827533,1774325437846,-500.0,0.00014074,2]
[408827534,1774325437856,-574.2104951,0.00014074,2]
[408827535,1774325437877,-9697.89471023,0.00014074,2]
[408827536,1774325437888,-151.0,0.00014074,2]
[408827537,1774325437899,-282.71673119,0.00014074,2]
[408827538,1774325437910,-350.0,0.00014074,2]
[408827539,1774325437921,-197.1463,0.000141,2]
[408827540,1774325437931,-500.0,0.00014112,2]
[408827541,1774325437941,-500.0,0.00014112,2]
[408827542,1774325437951,-500.0,0.00014112,2]
[408827543,1774325437962,-500.0,0.00014112,2]
[408827544,1774325437972,-584.86967026,0.00014112,2]
[408827545,1774325437982,-499.99999999,0.00014112,2]
[408827546,1774325437991,-500.0,0.00014112,2]
[408827547,1774325438001,-500.0,0.00014112,2]
[408827548,1774325438011,-531.80470445,0.00014112,2]
[408827549,1774325438022,-524.65416271,0.00014112,2]
[408827550,1774325438031,-500.0,0.00014112,2]
[408827551,1774325438041,-500.0,0.00014112,2]
[408827552,1774325438051,-530.6135477,0.00014112,2]
[408827554,1774325438060,-509.57615757,0.00014112,2]
[408827555,1774325438070,-500.0,0.00014112,2]
[408827556,1774325438080,-500.0,0.00014112,2]
[408827557,1774325438090,-137353.22834705,0.00014113,2]
[408827560,1774325438175,-603.22941727,0.00014113,2]
[408827564,1774325438202,-10554.25860929,0.00014113,2]
[408827566,1774325438214,-3015.00009,0.00014113,2]
[408827568,1774325438225,-19715.63714299,0.00014113,2]
[408827571,1774325438238,-981.56,0.00014113,2]
[408827588,1774325440002,-305.1531669,0.00014113,2]
[408827598,1774325442947,-969.7190945,0.00014113,2]
[408827601,1774325444670,-4810.27,0.00014113,2]
[408827602,1774325445912,-29287.37223159,0.00014113,2]
[408827603,1774325445923,-353.368,0.00014113,2]
[408827609,1774325790110,-200.0,0.00012418,2]
[408827610,1774325790139,-966.44,0.00012418,2]
[408827611,1774325790167,-167.24,0.0001279,2]
[408827612,1774325790194,-277.44051981,0.00013473,2]
[408827613,1774325790670,-587.0,0.00013505,2]
[408827614,1774326258494,-500.0,0.00013279,2]
[408827616,1774326538497,42850.67972339,9.5e-05,3]
[408827622,1774326631889,-1177.17,0.00011507,2]
[408827624,1774326631899,-545.77993468,0.00012875,2]
[408827626,1774326631925,-258.87161287,0.00012875,2]
[408827627,1774326631936,-133.34845245,0.00012875,2]
[408827628,1774326631946,-266.65154755,0.00012876,2]
[408827629,1774326631960,-7949.08845245,0.00012876,2]
[408827630,1774326631970,-3377.82,0.00013509,2]
[408827631,1774326631979,-350.0,0.00013597,2]
[408827632,1774326631988,-350.0,0.00013598,2]
[408827633,1774326631998,-500.0,0.00013642,2]
[408827634,1774326632007,-314.18147653,0.00013642,2]
[408827635,1774326632016,-500.0,0.00013697,2]
[408827636,1774326632026,-788.52,0.00013699,2]
[408827637,1774326632036,-657.64,0.00013699,2]
[408827638,1774326632045,-168.0,0.00013739,2]
[408827639,1774326632054,-500.0,0.00013752,2]
[408827640,1774326632064,-9552.16786547,0.00013805,2]
[408827641,1774326632073,-151.0,0.00013805,2]
[408827642,1774326632082,-262.90206542,0.00013805,2]
[408827644,1774326632091,-500.0,0.00013807,2]
[408827645,1774326632101,-342.7632967,0.00013812,2]
[408827646,1774326632110,-150.0,0.00013812,2]
[408827647,1774326632119,-11789.47,0.00013813,2]
[408827648,1774326632129,-299.99,0.00013813,2]
[408827649,1774326632138,-150.99,0.00013813,2]
[408827651,1774326632147,-787.85,0.00013813,2]
[408827653,1774326632156,-9999.99,0.00013813,2]
[408827654,1774326632165,-3108.85858057,0.00013813,2]
[408827655,1774326632176,-6891.13141943,0.00013813,2]
[408827656,1774326632185,-8506.75,0.00013813,2]
[408827657,1774326632194,-406.42,0.00013813,2]
[408827658,1774326632203,-1479.36,0.00013813,2]
[408827659,1774326632212,-9999.99,0.00013813,2]
[408827660,1774326632223,-499.99,0.00013813,2]
[408827661,1774326632232,-64916.65375138,0.00013813,2]
[408827662,1774326632244,-29565.80974553,0.00013813,2]
[408827663,1774326632256,-703.72702952,0.00013813,2]
[408827664,1774326632275,-3710.00000002,0.00013813,2]
[408827665,1774326632301,-307.395711,0.00013813,2]
[408827668,1774326638045,-4259.17867883,0.00013813,2]
[408827728,1774326640561,-4336.95649266,0.00013813,2]
[408827729,1774326640614,-1019.64210675,0.00013813,2]
[408827730,1774326640672,-2742.37269276,0.00013813,2]
[408827731,1774326640684,-6750.50676922,0.00013813,2]
[408827732,1774326640697,-4804.2985818,0.00013813,2]
[408827741,1774326643054,-70650.00000002,0.00013813,2]
[408827742,1774326643375,-522.5563823,0.00013813,2]
[408827751,1774326646080,-686.69924265,0.00013813,2]
[408827752,1774326646171,-9186.07056425,0.00013813,2]
[408827753,1774326646227,-1276.747,0.00013813,2]
[408827758,1774326727288,-1760.01,0.00013425,2]
[408827759,1774326730162,-1479.99,0.00013425,2]
[408827760,1774327039991,455.39,6.435e-05,2]
[408827761,1774327040193,455.39,6.773e-05,2]
[408827762,1774327040587,455.39,7.112e-05,2]
[408827763,1774327040821,455.39,7.451e-05,2]
[408827764,1774327040976,455.39,7.789e-05,2]
[408827765,1774327041172,455.39,8.128e-05,2]
[408827766,1774327041366,455.39,8.467e-05,2]
[408827767,1774327041556,455.39,8.805e-05,2]
[408827768,1774327041792,455.39,9.144e-05,2]
[408827769,1774327041945,455.39,9.483e-05,2]
[408827770,1774327505403,-455.39,9.821e-05,2]
[408827771,1774327505430,-250.0,9.991e-05,2]
[408827772,1774327505456,-455.39,0.0001016,2]
[408827773,1774327505484,-455.39,0.00010499,2]
[408827774,1774327505511,-567.67,0.00010802,2]
[408827779,1774327832329,-455.39,0.00010837,2]
[408827780,1774327832339,-455.39,0.00011176,2]
[408827781,1774327832349,-455.39,0.00011515,2]
[408827782,1774327832361,-1860.22170162,0.000116,2]
[408827783,1774327832370,-1200.0,0.00011852,2]
[408827784,1774327832379,-455.39,0.00011853,2]
[408827785,1774327832388,-150.0,0.00011881,2]
[408827786,1774327832398,-250.0,0.00011882,2]
[408827787,1774327832407,-300.0,0.00011882,2]
[408827788,1774327832417,-300.30756383,0.00011882,2]
[408827789,1774327832427,-5000.0,0.00011882,2]
[408827790,1774327832436,-5000.0,0.00011882,2]
[408827791,1774327832445,-5000.0,0.00011882,2]
[408827792,1774327832456,-250.0,0.00011882,2]
[408827793,1774327832467,-166.66,0.00011942,2]
[408827794,1774327832476,-150.0,0.000121,2]
[408827795,1774327832486,-196.40417475,0.00012133,2]
[408827796,1774327832496,-455.39,0.00012192,2]
[408827797,1774327832506,-166.66,0.00012193,2]
[408827798,1774327832515,-2855.66,0.00012214,2]
[408827799,1774327832525,-2774.34,0.000123,2]
[408827800,1774327832534,-150.0,0.00012373,2]
[408827801,1774327832544,-464.0,0.00012409,2]
[408827802,1774327832553,-166.66,0.00012444,2]
[408827803,1774327832562,-455.39,0.00012531,2]
[408827804,1774327832572,-166.66,0.00012696,2]
[408827805,1774327832581,-455.39,0.00012869,2]
[408827806,1774327832591,-1676.87,0.00012885,2]
[408827807,1774327832602,-150.99,0.00012893,2]
[408827808,1774327832612,-1954.79,0.00012893,2]
[408827809,1774327832622,-166.66,0.00012947,2]
[408827810,1774327832632,-255.0,0.00012962,2]
[408827811,1774327832642,-1113.0,0.00013037,2]
[408827812,1774327832652,-166.66,0.00013199,2]
[408827813,1774327832662,-197.1404,0.000134,2]
[408827814,1774327832671,-230.0,0.00013403,2]
[408827815,1774327832681,-9552.16786547,0.00013452,2]
[408827816,1774327832691,-500.0,0.00013452,2]
[408827817,1774327832700,-155.63632602,0.00013452,2]
[408827818,1774327832710,-262.90206542,0.00013452,2]
[408827819,1774327832726,-9905.5980765,0.00013507,2]
[408827820,1774327832736,-500.0,0.00013507,2]
[408827821,1774327832746,-272.62944185,0.00013507,2]
[408827822,1774327832756,-10272.10520533,0.00013562,2]
[408827823,1774327832766,-500.0,0.00013562,2]
[408827824,1774327832776,-282.71673119,0.00013562,2]
[408827825,1774327832786,-9136.97515848,0.00013617,2]
[408827826,1774327832795,-336.04385107,0.00013617,2]
[408827827,1774327832805,-3652.27309754,0.00013663,2]
[408827828,1774327832815,-156.67599836,0.00013663,2]
[408827829,1774327832824,-58596.3946,0.00013675,2]
[408827830,1774327832834,-200.0,0.00013699,2]
[408827831,1774327832843,-392.28,0.00013699,2]
[408827832,1774327832853,-412.6842,0.00013705,2]
[408827833,1774327832863,-314.04993794,0.00013705,2]
[408827834,1774327832872,-801.5327,0.00013712,2]
[408827835,1774327832883,-5533.1681,0.00013713,2]
[408827836,1774327832892,-267.11402413,0.00013713,2]
[408827837,1774327833789,-659.60318344,0.00013713,2]
[408827838,1774327833805,-1573.28279243,0.00013713,2]
[408827839,1774327833815,-2027.14151824,0.00013713,2]
[408827840,1774327833828,-818.42572312,0.00013713,2]
[408827841,1774327833841,-727.41523473,0.00013713,2]
[408827842,1774327833851,-521.45405821,0.00013744,2]
[408827843,1774327833862,-461.21340243,0.00013744,2]
[408827844,1774327833874,-2685.33253936,0.00013744,2]
[408827845,1774327833883,-373.3034789,0.00013758,2]
[408827846,1774327833906,-52.6965211,0.00013758,2]
[408827847,1774327833915,-1000.0,0.00013761,2]
[408827848,1774327833924,-13025.47697627,0.00013762,2]
[408827849,1774327833936,-471.84604647,0.00013762,2]
[408827850,1774327833948,-393.653476,0.00013762,2]
[408827851,1774327833964,-250.0,0.00013762,2]
[408827854,1774327838101,-150.0,0.000121,2]
[408827855,1774327838111,-197.1346,0.000134,2]
[408827856,1774327838121,-2744.99255595,0.00013762,2]
[408827857,1774327838130,-426.0,0.00013763,2]
[408827858,1774327838139,-188.6064662,0.00013773,2]
[408827859,1774327838148,-459.68917561,0.00013773,2]
[408827860,1774327838158,-500.0,0.00013773,2]
[408827861,1774327838167,-500.0,0.00013773,2]
[408827862,1774327838176,-16833.57720224,0.00013775,2]
[408827863,1774327838194,-3037.17834088,0.00013775,2]
[408827864,1774327838205,-4117.32328728,0.00013775,2]
[408827865,1774327838216,-688.05801107,0.00013775,2]
[408827866,1774327838340,-7246.95105033,0.00013775,2]
[408827867,1774327838351,-622.62371098,0.00013775,2]
[408827875,1774327840663,-793.0852,0.00013675,2]
[408827876,1774327840673,-16362.40333312,0.00013775,2]
[408827877,1774327840683,-2565.9942592,0.00013775,2]
[408827878,1774327840692,-151.0,0.00013775,2]
[408827879,1774327840701,-151.0,0.00013775,2]
[408827880,1774327840711,-151.0,0.00013775,2]
[408827881,1774327840721,-151.0,0.00013775,2]
[408827882,1774327840731,-1189.265201,0.00013775,2]
[408827883,1774327840740,-1189.265201,0.00013775,2]
[408827884,1774327840749,-1189.265201,0.00013775,2]
[408827885,1774327840758,-1189.265201,0.00013775,2]
[408827886,1774327840768,-151.0,0.00013775,2]
[408827887,1774327840778,-151.0,0.00013775,2]
[408827888,1774327840789,-151.0,0.00013775,2]
[408827889,1774327840800,-151.0,0.00013775,2]
[408827890,1774327840809,-151.0,0.00013775,2]
[408827891,1774327840818,-426.0,0.00013787,2]
[408827892,1774327840828,-152.1655214,0.0001379,2]